fUSD/lending_fUSD_20250417
["ID","MTS","AMOUNT","RATE_DAILY","PERIOD"]
[358224062,1744857053091,-500.0,0.00052054,120]
[358224063,1744857053101,-500.0,0.00052054,120]
[358224064,1744857053111,-998.99,0.00052054,120]
[358224065,1744857053121,-500.0,0.00052054,120]
[358224066,1744857053131,-158.895601,0.00052054,120]
[358224067,1744857053141,-500.0,0.00052054,120]
[358224068,1744857053151,-1734.74,0.00052054,120]
[358224069,1744857053161,-500.0,0.00052054,120]
[358224070,1744857053174,-500.0,0.00052054,120]
[358224071,1744857053183,-500.0,0.00052054,120]
[358224072,1744857053193,-500.0,0.00052054,120]
[358224073,1744857053203,-751.52,0.00052054,120]
[358224074,1744857053212,-500.0,0.00052054,120]
[358224075,1744857053427,-500.0,0.00052054,120]
[358224076,1744857053437,-500.0,0.00052054,120]
[358224077,1744857053448,-500.0,0.00052054,120]
[358224078,1744857053457,-978.84,0.00052054,120]
[358224079,1744857053467,-500.0,0.00052054,120]
[358224080,1744857053477,-581.94902039,0.00052054,120]
[358224081,1744857053487,-500.0,0.00052054,120]
[358224082,1744857053496,-500.0,0.00052054,120]
[358224083,1744857053505,-500.0,0.00052054,120]
[358224084,1744857053514,-500.0,0.00052054,120]
[358224085,1744857053523,-521.1058686,0.00052054,120]
[358224086,1744857053534,-522.08615888,0.00052054,120]
[358224087,1744857053544,-500.0,0.00052054,120]
[358224088,1744857053556,-535.20354109,0.00052054,30]
[358224089,1744857053567,-500.0,0.00052054,120]
[358224090,1744857053578,-500.0,0.00052054,120]
[358224091,1744857053589,-500.0,0.00052054,120]
[358224092,1744857053599,-500.0,0.00052054,120]
[358224093,1744857053609,-500.0,0.00052054,120]
[358224094,1744857053619,-500.0,0.00052054,120]
[358224095,1744857053628,-500.0,0.00052054,120]
[358224096,1744857053637,-671.919064,0.00052054,120]
[358224097,1744857053646,-500.0,0.00052054,120]
[358224098,1744857053655,-1204.53,0.00052054,120]
[358224099,1744857053666,-501.87123334,0.00052054,120]
[358224100,1744857053677,-500.0,0.00052054,120]
[358224101,1744857053686,-500.0,0.00052054,120]
[358224102,1744857053696,-1869.94,0.00052054,120]
[358224103,1744857053706,-150.71669164,0.00052054,120]
[358224104,1744857053716,-500.0,0.00052054,120]
[358224105,1744857053726,-500.0,0.00052054,120]
[358224106,1744857053735,-500.0,0.00052054,120]
[358224107,1744857053746,-500.0,0.00052054,120]
[358224108,1744857053756,-580.25,0.00052054,120]
[358224109,1744857053765,-519.33837549,0.00052054,120]
[358224110,1744857053775,-500.0,0.00052054,120]
[358224111,1744857053784,-500.0,0.00052054,120]
[358224112,1744857053793,-653.4,0.00052054,120]
[358224113,1744857053802,-204.31935391,0.00052054,120]
[358224114,1744857053811,-539.36917865,0.00052054,120]
[358224115,1744857053820,-500.0,0.00052054,120]
[358224116,1744857053830,-500.0,0.00052054,120]
[358224117,1744857053840,-500.0,0.00052054,120]
[358224118,1744857053850,-1000.0,0.00052054,120]
[358224119,1744857053859,-500.0,0.00052054,120]
[358224120,1744857053870,-500.0,0.00052054,120]
[358224121,1744857053880,-500.0,0.00052054,120]
[358224122,1744857053891,-500.0,0.00052054,120]
[358224123,1744857053900,-500.0,0.00052054,120]
[358224124,1744857053911,-511.8,0.00052054,120]
[358224125,1744857053920,-500.0,0.00052054,120]
[358224126,1744857053929,-524.87521687,0.00052054,120]
[358224127,1744857053938,-1583.74,0.00052054,120]
[358224128,1744857053947,-1472.71,0.00052054,120]
[358224129,1744857053957,-500.0,0.00052054,120]
[358224130,1744857053966,-1198.26,0.00052054,120]
[358224131,1744857053976,-1876.8,0.00052054,120]
[358224132,1744857053986,-500.0,0.00052054,120]
[358224133,1744857053998,-500.0,0.00052054,120]
[358224134,1744857054011,-500.0,0.00052054,120]
[358224135,1744857054021,-500.0,0.00052054,120]
[358224136,1744857054031,-500.0,0.00052054,120]
[358224137,1744857054040,-1426.58,0.00052054,120]
[358224138,1744857054051,-500.0,0.00052054,120]
[358224139,1744857054060,-1757.26,0.00052054,120]
[358224140,1744857054070,-500.0,0.00052054,120]
[358224141,1744857054079,-1222.01,0.00052054,120]
[358224142,1744857054090,-500.0,0.00052054,120]
[358224143,1744857054100,-500.0,0.00052054,120]
[358224144,1744857054110,-500.0,0.00052054,120]
[358224145,1744857054119,-1058.24,0.00052054,120]
[358224146,1744857054129,-500.0,0.00052054,120]
[358224147,1744857054139,-500.0,0.00052054,120]
[358224148,1744857054148,-500.0,0.00052054,120]
[358224149,1744857054159,-1067.85,0.00052054,120]
[358224150,1744857054169,-771.13,0.00052054,120]
[358224151,1744857054179,-500.0,0.00052054,120]
[358224152,1744857054189,-508.087335,0.00052054,120]
[358224153,1744857054198,-716.78,0.00052054,120]
[358224154,1744857054207,-525.01895884,0.00052054,120]
[358224155,1744857054217,-500.0,0.00052054,120]
[358224156,1744857054227,-635.55172595,0.00052054,120]
[358224157,1744857054236,-500.0,0.00052054,120]
[358224158,1744857054247,-500.0,0.00052054,120]
[358224159,1744857054256,-1912.81,0.00052054,120]
[358224160,1744857054265,-500.0,0.00052054,120]
[358224161,1744857054275,-526.2871405,0.00052054,120]
[358224162,1744857054285,-500.0,0.00052054,120]
[358224163,1744857054294,-500.0,0.00052054,120]
[358224164,1744857054303,-500.0,0.00052054,120]
[358224165,1744857054313,-770.66,0.00052054,120]
[358224166,1744857054323,-500.0,0.00052054,120]
[358224167,1744857054332,-500.0,0.00052054,120]
[358224168,1744857054342,-520.39,0.00052054,120]
[358224169,1744857054351,-500.0,0.00052054,120]
[358224170,1744857054361,-500.0,0.00052054,120]
[358224171,1744857054370,-500.0,0.00052054,120]
[358224172,1744857054380,-1298.88,0.00052054,120]
[358224173,1744857054389,-581.56,0.00052054,30]
[358224174,1744857054399,-500.0,0.00052054,120]
[358224175,1744857054409,-795.14,0.00052054,120]
[358224176,1744857054419,-500.0,0.00052054,120]
[358224177,1744857054429,-500.0,0.00052054,120]
[358224178,1744857054438,-805.82,0.00052054,120]
[358224179,1744857054448,-500.0,0.00052054,120]
[358224180,1744857054458,-500.0,0.00052054,120]
[358224181,1744857054468,-500.0,0.00052054,120]
[358224182,1744857054478,-500.0,0.00052054,120]
[358224183,1744857054487,-500.0,0.00052054,120]
[358224184,1744857054497,-500.0,0.00052054,120]
[358224185,1744857054507,-769.59,0.00052054,120]
[358224186,1744857054516,-562.72,0.00052054,120]
[358224187,1744857054525,-957.85,0.00052054,120]
[358224188,1744857054535,-500.0,0.00052054,120]
[358224189,1744857054545,-500.0,0.00052054,120]
[358224190,1744857054554,-500.0,0.00052054,120]
[358224191,1744857054564,-500.0,0.00052054,120]
[358224192,1744857054574,-500.0,0.00052054,120]
[358224193,1744857054583,-2021.42,0.00052054,120]
[358224194,1744857054593,-547.27,0.00052054,120]
[358224195,1744857054603,-838.5,0.00052054,120]
[358224196,1744857054612,-500.0,0.00052054,120]
[358224197,1744857054622,-500.0,0.00052054,120]
[358224198,1744857054631,-500.0,0.00052054,120]
[358224199,1744857054641,-500.0,0.00052054,120]
[358224200,1744857054650,-1847.35,0.00052054,120]
[358224201,1744857054659,-500.0,0.00052054,120]
[358224202,1744857054667,-500.0,0.00052054,120]
[358224203,1744857054676,-603.17,0.00052054,120]
[358224204,1744857054685,-500.0,0.00052054,120]
[358224205,1744857054693,-783.9,0.00052054,120]
[358224206,1744857054702,-500.0,0.00052054,120]
[358224207,1744857054711,-500.0,0.00052054,120]
[358224208,1744857054720,-572.34991719,0.00052054,120]
[358224209,1744857054728,-500.0,0.00052054,120]
[358224210,1744857054737,-500.0,0.00052054,120]
[358224211,1744857054747,-500.0,0.00052054,120]
[358224212,1744857054756,-500.0,0.00052054,120]
[358224213,1744857054766,-500.0,0.00052054,120]
[358224214,1744857054775,-500.0,0.00052054,120]
[358224215,1744857054785,-500.0,0.00052054,120]
[358224216,1744857054794,-500.0,0.00052054,120]
[358224217,1744857054803,-500.0,0.00052054,120]
[358224218,1744857054813,-500.0,0.00052054,120]
[358224219,1744857054822,-500.0,0.00052054,120]
[358224220,1744857054832,-1439.15,0.00052054,120]
[358224221,1744857054842,-638.74,0.00052054,120]
[358224222,1744857054851,-500.0,0.00052054,120]
[358224223,1744857054861,-500.0,0.00052054,120]
[358224224,1744857054871,-500.0,0.00052054,120]
[358224225,1744857054881,-500.0,0.00052054,120]
[358224226,1744857054890,-1477.15,0.00052054,120]
[358224227,1744857054900,-630.87180426,0.00052054,120]
[358224228,1744857054910,-500.0,0.00052054,120]
[358224229,1744857054920,-500.0,0.00052054,120]
[358224230,1744857054929,-621.88,0.00052054,120]
[358224231,1744857054939,-500.0,0.00052054,120]
[358224232,1744857054948,-500.0,0.00052054,120]
[358224233,1744857054958,-500.0,0.00052054,120]
[358224234,1744857054968,-500.0,0.00052054,120]
[358224235,1744857054977,-500.0,0.00052054,120]
[358224236,1744857054987,-500.0,0.00052054,120]
[358224237,1744857054996,-500.0,0.00052054,120]
[358224238,1744857055009,-500.0,0.00052054,120]
[358224239,1744857055019,-500.0,0.00052054,120]
[358224240,1744857055029,-500.0,0.00052054,120]
[358224241,1744857055038,-500.0,0.00052054,120]
[358224242,1744857055049,-720.28,0.00052054,120]
[358224243,1744857055059,-500.0,0.00052054,120]
[358224244,1744857055068,-937.32,0.00052054,120]
[358224245,1744857055079,-623.04,0.00052054,120]
[358224246,1744857055090,-500.0,0.00052054,120]
[358224247,1744857055101,-500.0,0.00052054,120]
[358224248,1744857055111,-500.0,0.00052054,120]
[358224249,1744857055122,-530.16689177,0.00052054,120]
[358224250,1744857055132,-500.0,0.00052054,120]
[358224251,1744857055142,-155.383725,0.00052054,120]
[358224252,1744857055152,-496.25959113,0.00052054,120]
[358224253,1744857055161,-500.0,0.00052054,120]
[358224254,1744857055171,-500.0,0.00052054,120]
[358224255,1744857055181,-500.0,0.00052054,120]
[358224256,1744857055191,-500.0,0.00052054,120]
[358224257,1744857055200,-500.0,0.00052054,120]
[358224258,1744857055209,-500.0,0.00052054,120]
[358224259,1744857055219,-1673.67,0.00052054,120]
[358224260,1744857055228,-500.0,0.00052054,120]
[358224261,1744857055238,-511.43174373,0.00052054,120]
[358224262,1744857055248,-1413.84,0.00052054,120]
[358224263,1744857055257,-500.0,0.00052054,120]
[358224264,1744857055266,-500.0,0.00052054,120]
[358224265,1744857055276,-500.0,0.00052054,120]
[358224266,1744857055285,-500.0,0.00052054,120]
[358224267,1744857055294,-500.0,0.00052054,120]
[358224268,1744857055305,-512.075477,0.00052054,120]
[358224269,1744857055315,-164.189454,0.00052054,120]
[358224270,1744857055324,-815.84,0.00052054,120]
[358224271,1744857055333,-783.14,0.00052054,120]
[358224272,1744857055343,-447.00870436,0.00052054,120]
[358224273,1744857055353,-765.53,0.00052054,120]
[358224274,1744857055363,-500.0,0.00052054,60]
[358224275,1744857055372,-1008.96,0.00052054,120]
[358224276,1744857055381,-500.0,0.00052054,120]
[358224277,1744857055391,-500.0,0.00052054,120]
[358224278,1744857055400,-500.0,0.00052054,120]
[358224279,1744857055409,-500.0,0.00052054,120]
[358224280,1744857055419,-554.79,0.00052054,8]
[358224281,1744857055428,-500.0,0.00052054,120]
[358224282,1744857055438,-500.0,0.00052054,120]
[358224283,1744857055447,-1198.79,0.00052054,120]
[358224284,1744857055457,-500.0,0.00052054,120]
[358224285,1744857055466,-500.0,0.00052054,120]
[358224286,1744857055475,-500.0,0.00052054,120]
[358224287,1744857055485,-793.88,0.00052054,120]
[358224288,1744857055495,-643.64,0.00052054,120]
[358224289,1744857055504,-500.0,0.00052054,120]
[358224290,1744857055512,-500.0,0.00052054,120]
[358224291,1744857055522,-151.831473,0.00052054,120]
[358224292,1744857055531,-427.23769896,0.00052054,120]
[358224293,1744857055540,-549.54421713,0.00052054,120]
[358224294,1744857055550,-1196.32,0.00052054,120]
[358224295,1744857055559,-500.0,0.00052054,120]
[358224296,1744857055569,-681.87,0.00052054,120]
[358224297,1744857055581,-500.0,0.00052054,120]
[358224298,1744857055591,-500.0,0.00052054,120]
[358224299,1744857055600,-500.0,0.00052054,120]
[358224300,1744857055609,-943.5,0.00052054,120]
[358224301,1744857055618,-500.0,0.00052054,120]
[358224302,1744857055627,-500.0,0.00052054,120]
[358224303,1744857055636,-500.0,0.00052054,120]
[358224304,1744857055646,-500.0,0.00052054,120]
[358224305,1744857055655,-500.0,0.00052054,120]
[358224306,1744857055664,-794.34,0.00052054,120]
[358224307,1744857055674,-500.0,0.00052054,120]
[358224308,1744857055683,-500.0,0.00052054,120]
[358224309,1744857055693,-500.0,0.00052054,120]
[358224310,1744857055702,-500.0,0.00052054,120]
[358224311,1744857055712,-898.34,0.00052054,120]
[358224312,1744857055722,-1235.27,0.00052054,120]
[358224313,1744857055731,-1368.04,0.00052054,120]
[358224314,1744857055740,-1938.44,0.00052054,120]
[358224315,1744857055751,-500.0,0.00052054,120]
[358224316,1744857055761,-500.0,0.00052054,120]
[358224317,1744857055771,-500.0,0.00052054,120]
[358224318,1744857055782,-500.0,0.00052054,120]
[358224319,1744857055791,-500.0,0.00052054,120]
[358224320,1744857055802,-500.0,0.00052054,120]
[358224321,1744857055811,-500.0,0.00052054,120]
[358224322,1744857055821,-500.0,0.00052054,120]
[358224323,1744857055830,-502.64278922,0.00052054,120]
[358224324,1744857055839,-531.93787669,0.00052054,120]
[358224325,1744857055849,-500.0,0.00052054,120]
[358224326,1744857055859,-500.0,0.00052054,120]
[358224327,1744857055868,-500.0,0.00052054,120]
[358224328,1744857055882,-500.0,0.00052054,120]
[358224329,1744857055892,-500.0,0.00052054,120]
[358224330,1744857055902,-500.0,0.00052054,120]
[358224331,1744857055912,-500.0,0.00052054,120]
[358224332,1744857055922,-500.0,0.00052054,120]
[358224333,1744857055932,-800.42,0.00052054,120]
[358224334,1744857055943,-500.0,0.00052054,120]
[358224335,1744857055954,-500.0,0.00052054,120]
[358224336,1744857055963,-500.0,0.00052054,120]
[358224337,1744857055973,-908.84,0.00052054,120]
[358224338,1744857055983,-1174.07,0.00052054,120]
[358224339,1744857055994,-320.2503335,0.00052054,120]
[358224340,1744857056008,-282.45525779,0.00052054,120]
[358224341,1744857056018,-610.56,0.00052054,120]
[358224342,1744857056028,-195.07938905,0.00052054,120]
[358224343,1744857056037,-500.0,0.00052054,120]
[358224344,1744857056047,-1511.23,0.00052054,120]
[358224345,1744857056057,-195.87355642,0.00052054,120]
[358224346,1744857056067,-500.0,0.00052054,120]
[358224347,1744857056077,-393.04597639,0.00052054,120]
[358224348,1744857056087,-1074.34,0.00052054,120]
[358224349,1744857056096,-500.0,0.00052054,120]
[358224350,1744857056106,-500.0,0.00052054,120]
[358224351,1744857056115,-500.0,0.00052054,30]
[358224352,1744857056125,-498.57674156,0.00052054,120]
[358224353,1744857056135,-500.0,0.00052054,120]
[358224354,1744857056145,-500.0,0.00052054,120]
[358224355,1744857056155,-1331.86,0.00052054,120]
[358224356,1744857056164,-1011.04,0.00052054,120]
[358224357,1744857056174,-1144.1,0.00052054,120]
[358224358,1744857056184,-1160.07,0.00052054,120]
[358224359,1744857056193,-789.1,0.00052054,120]
[358224360,1744857056202,-500.0,0.00052054,120]
[358224361,1744857056212,-500.0,0.00052054,120]
[358224362,1744857056222,-1092.55,0.00052054,120]
[358224363,1744857056232,-500.0,0.00052054,120]
[358224364,1744857056242,-500.0,0.00052054,120]
[358224365,1744857056252,-500.0,0.00052054,120]
[358224366,1744857056261,-500.0,0.00052054,120]
[358224367,1744857056271,-500.0,0.00052054,120]
[358224368,1744857056281,-500.0,0.00052054,120]
[358224369,1744857056291,-500.0,0.00052054,120]
[358224370,1744857056302,-500.0,0.00052054,120]
[358224371,1744857056312,-500.0,0.00052054,120]
[358224372,1744857056322,-500.0,0.00052054,120]
[358224373,1744857056333,-500.0,0.00052054,120]
[358224374,1744857056344,-504.22947794,0.00052054,120]
[358224375,1744857056355,-716.42,0.00052054,120]
[358224376,1744857056365,-500.0,0.00052054,120]
[358224377,1744857056375,-500.0,0.00052054,120]
[358224378,1744857056384,-1166.93,0.00052054,120]
[358224379,1744857056394,-500.0,0.00052054,120]
[358224380,1744857056403,-500.0,0.00052054,120]
[358224381,1744857056413,-500.0,0.00052054,120]
[358224382,1744857056598,-500.0,0.00052054,120]
[358224383,1744857056607,-500.0,0.00052054,120]
[358224384,1744857056617,-500.0,0.00052054,120]
[358224385,1744857056627,-500.0,0.00052054,120]
[358224386,1744857056636,-655.16,0.00052054,120]
[358224387,1744857056646,-532.99068964,0.00052054,120]
[358224388,1744857056656,-500.0,0.00052054,120]
[358224389,1744857056667,-500.0,0.00052054,120]
[358224390,1744857056677,-500.0,0.00052054,120]
[358224391,1744857056687,-500.0,0.00052054,120]
[358224392,1744857056697,-889.47,0.00052054,120]
[358224393,1744857056707,-500.0,0.00052054,120]
[358224394,1744857056717,-500.0,0.00052054,120]
[358224395,1744857056726,-500.0,0.00052054,120]
[358224396,1744857056735,-500.0,0.00052054,120]
[358224397,1744857056746,-500.0,0.00052054,120]
[358224398,1744857056756,-500.0,0.00052054,120]
[358224399,1744857056765,-500.0,0.00052054,120]
[358224400,1744857056775,-500.0,0.00052054,120]
[358224401,1744857056784,-500.0,0.00052054,120]
[358224402,1744857056794,-500.0,0.00052054,120]
[358224403,1744857056803,-2397.19,0.00052054,120]
[358224404,1744857056813,-500.0,0.00052054,120]
[358224405,1744857056823,-500.0,0.00052054,120]
[358224406,1744857056832,-500.0,0.00052054,120]
[358224407,1744857056842,-500.0,0.00052054,120]
[358224408,1744857056851,-736.91,0.00052054,120]
[358224409,1744857056861,-1212.3,0.00052054,120]
[358224410,1744857056871,-536.17282752,0.00052054,120]
[358224411,1744857056881,-1236.73,0.00052054,120]
[358224412,1744857056892,-500.0,0.00052054,120]
[358224413,1744857056899,-500.0,0.00052054,120]
[358224414,1744857056909,-164.189452,0.00052054,120]
[358224415,1744857056918,-500.0,0.00052054,120]
[358224416,1744857056927,-500.0,0.00052054,120]
[358224417,1744857056937,-343.65679705,0.00052054,120]
[358224418,1744857056946,-1025.84,0.00052054,120]
[358224419,1744857056956,-500.0,0.00052054,120]
[358224420,1744857056965,-500.0,0.00052054,120]
[358224421,1744857056974,-500.0,0.00052054,120]
[358224422,1744857056983,-592.67,0.00052054,120]
[358224423,1744857056993,-813.42,0.00052054,120]
[358224424,1744857057006,-1270.32,0.00052054,120]
[358224425,1744857057016,-500.0,0.00052054,120]
[358224426,1744857057025,-1000.0,0.00052054,120]
[358224427,1744857057035,-500.0,0.00052054,120]
[358224428,1744857057044,-500.0,0.00052054,120]
[358224429,1744857057054,-500.0,0.00052054,120]
[358224430,1744857057064,-500.0,0.00052054,120]
[358224431,1744857057074,-552.80676415,0.00052054,120]
[358224432,1744857057085,-1787.13,0.00052054,120]
[358224433,1744857057095,-500.0,0.00052054,120]
[358224434,1744857057104,-500.0,0.00052054,120]
[358224435,1744857057114,-500.0,0.00052054,120]
[358224436,1744857057123,-500.0,0.00052054,120]
[358224437,1744857057132,-500.0,0.00052054,120]
[358224438,1744857057142,-151.831469,0.00052054,120]
[358224439,1744857057151,-500.0,0.00052054,120]
[358224440,1744857057160,-500.0,0.00052054,120]
[358224441,1744857057170,-500.0,0.00052054,120]
[358224442,1744857057178,-956.89,0.00052054,120]
[358224443,1744857057187,-500.0,0.00052054,120]
[358224444,1744857057197,-500.0,0.00052054,120]
[358224445,1744857057206,-500.0,0.00052054,120]
[358224446,1744857057215,-500.0,0.00052054,120]
[358224447,1744857057224,-363.63417567,0.00052054,120]
[358224448,1744857057234,-534.84697075,0.00052054,120]
[358224449,1744857057243,-500.0,0.00052054,120]
[358224450,1744857057253,-500.0,0.00052054,120]
[358224451,1744857057263,-871.04,0.00052054,120]
[358224452,1744857057272,-971.5,0.00052054,120]
[358224453,1744857057281,-500.0,0.00052054,120]
[358224454,1744857057291,-500.0,0.00052054,120]
[358224455,1744857057301,-500.0,0.00052054,120]
[358224456,1744857057311,-597.18883708,0.00052054,120]
[358224457,1744857057320,-155.383724,0.00052054,120]
[358224458,1744857057330,-464.19279481,0.00052054,120]
[358224459,1744857057340,-268.18799356,0.00052054,120]
[358224460,1744857057350,-1000.39,0.00052054,120]
[358224461,1744857057359,-500.0,0.00052054,120]
[358224462,1744857057369,-500.0,0.00052054,120]
[358224463,1744857057378,-672.91,0.00052054,120]
[358224464,1744857057388,-500.0,0.00052054,120]
[358224465,1744857057400,-500.0,0.00052054,120]
[358224466,1744857057410,-2271.25,0.00052054,120]
[358224467,1744857057420,-419.90248763,0.00052054,120]
[358224468,1744857057429,-610.9,0.00052054,120]
[358224469,1744857057439,-500.0,0.00052054,120]
[358224470,1744857057449,-500.0,0.00052054,120]
[358224471,1744857057459,-500.0,0.00052054,120]
[358224472,1744857057468,-500.0,0.00052054,120]
[358224473,1744857057478,-2169.34,0.00052054,120]
[358224474,1744857057488,-500.0,0.00052054,120]
[358224475,1744857057498,-500.0,0.00052054,120]
[358224476,1744857057508,-500.0,0.00052054,120]
[358224477,1744857057518,-500.0,0.00052054,120]
[358224478,1744857057528,-503.14624847,0.00052054,120]
[358224479,1744857057537,-500.0,0.00052054,120]
[358224480,1744857057547,-500.0,0.00052054,120]
[358224481,1744857057556,-552.48,0.00052054,120]
[358224482,1744857057566,-779.41,0.00052054,120]
[358224483,1744857057575,-500.0,0.00052054,120]
[358224484,1744857057585,-500.0,0.00052054,120]
[358224485,1744857057594,-946.5,0.00052054,120]
[358224486,1744857057604,-567.62,0.00052054,120]
[358224487,1744857057614,-500.0,0.00052054,120]
[358224488,1744857057624,-639.38,0.00052054,120]
[358224489,1744857057634,-784.7,0.00052054,120]
[358224490,1744857057644,-1200.3,0.00052054,120]
[358224491,1744857057653,-1087.58,0.00052054,120]
[358224492,1744857057665,-500.0,0.00052054,120]
[358224493,1744857057674,-500.0,0.00052054,120]
[358224494,1744857057688,-695.47,0.00052054,120]
[358224495,1744857057699,-500.0,0.00052054,120]
[358224496,1744857057709,-500.0,0.00052054,120]
[358224497,1744857057727,-500.0,0.00052054,120]
[358224498,1744857057737,-1063.74,0.00052054,120]
[358224499,1744857057747,-500.0,0.00052054,120]
[358224500,1744857057756,-547.62,0.00052054,120]
[358224501,1744857057766,-698.11,0.00052054,120]
[358224502,1744857057776,-500.0,0.00052054,120]
[358224503,1744857057786,-500.0,0.00052054,120]
[358224504,1744857057796,-500.0,0.00052054,120]
[358224505,1744857057805,-500.0,0.00052054,120]
[358224506,1744857057815,-500.0,0.00052054,120]
[358224507,1744857057825,-500.0,0.00052054,120]
[358224508,1744857057835,-500.0,0.00052054,120]
[358224509,1744857057844,-500.0,0.00052054,120]
[358224510,1744857057855,-500.0,0.00052054,120]
[358224511,1744857057865,-500.0,0.00052054,120]
[358224512,1744857057874,-500.0,0.00052054,120]
[358224513,1744857057884,-577.0,0.00052054,120]
[358224514,1744857057894,-541.02,0.00052054,120]
[358224515,1744857057904,-500.0,0.00052054,120]
[358224516,1744857057914,-821.5,0.00052054,118]
[358224517,1744857057924,-500.0,0.00052054,120]
[358224518,1744857057933,-500.0,0.00052054,120]
[358224519,1744857057943,-500.0,0.00052054,120]
[358224520,1744857057953,-500.0,0.00052054,120]
[358224521,1744857057963,-758.96,0.00052054,120]
[358224522,1744857057973,-500.0,0.00052054,120]
[358224523,1744857057982,-500.0,0.00052054,120]
[358224524,1744857057991,-500.0,0.00052054,120]
[358224525,1744857058003,-388.15305183,0.00052054,120]
[358224526,1744857058015,-509.17,0.00052054,120]
[358224527,1744857058026,-2000.0,0.00052054,120]
[358224528,1744857058035,-1612.62860551,0.00052054,120]
[358224529,1744857127536,1784.547385,7.945e-05,2]
[358224530,1744858045409,-153.28,0.00024932,2]
[358224531,1744858045431,-180.18,0.00032877,30]
[358224532,1744858045458,-152.23,0.000335,31]
[358224533,1744858045482,-152.23,0.000335,31]
[358224534,1744858045505,-152.23,0.000335,31]
[358224535,1744858045529,-152.23,0.000335,31]
[358224536,1744858045550,-150.0,0.00034548,10]
[358224537,1744858045570,-151.0,0.00034807,2]
[358224538,1744858045590,-151.0,0.00034807,2]
[358224539,1744858045630,-68.84534234,0.00035205,2]
[358224546,1744858231420,-151.0,0.00035055,2]
[358224547,1744858231429,-151.0,0.0003506,2]
[358224548,1744858231439,-151.0,0.00035116,2]
[358224549,1744858231449,-81.15465766,0.00035205,2]
[358224550,1744858231459,-250.0,0.00036164,2]
[358224551,1744858231468,-75.70127196,0.00040699,2]
[358224552,1744858231484,-157.89559075,0.00040699,2]
[358224553,1744858231495,-154.10440925,0.000407,120]
[358224554,1744858231506,-36.33614685,0.000407,120]
[358224555,1744858231515,-337.16633695,0.00040799,5]
[358224556,1744858231527,-212.83366305,0.00040799,5]
[358224557,1744858231536,-87.16633695,0.00040799,5]
[358224558,1744858231547,-339.44976473,0.00040799,5]
[358224559,1744858231584,-123.38389832,0.00040799,5]
[358224560,1744858231593,-152.23,0.000408,31]
[358224561,1744858231603,-152.23,0.000408,31]
[358224562,1744858231612,-152.23,0.000408,31]
[358224563,1744858231622,-152.23,0.000408,31]
[358224564,1744858231631,-152.23,0.000408,31]
[358224565,1744858231641,-152.23,0.000408,31]
[358224566,1744858231650,-152.23,0.000408,31]
[358224567,1744858231659,-152.23,0.000408,31]